bitfinex/quotes_BTCUSD_20241011
["timestamp","ask_amount","ask_price","bid_price","bid_amount"]
[1728660542950,0.01505732,62217.0,62216.0,0.35023596]
[1728660543676,0.01505732,62217.0,62216.0,0.35323596]
[1728660543908,0.01505732,62217.0,62216.0,0.35123596]
[1728660544126,0.01505732,62217.0,62216.0,0.161548]
[1728660544330,0.01505732,62217.0,62216.0,0.004818]
[1728660544534,0.01505732,62217.0,62216.0,0.010818]
[1728660544940,0.03916583,62217.0,62216.0,0.010818]
[1728660545149,0.001548,62221.0,62216.0,0.004818]
[1728660545376,0.05424563,62217.0,62216.0,0.004818]
[1728660545601,0.05424563,62217.0,62216.0,0.007818]
[1728660545602,0.03013758,62217.0,62216.0,0.007818]
[1728660545813,0.06931773,62217.0,62216.0,0.007818]
[1728660547076,0.06931773,62217.0,62216.0,0.000818]
[1728660547275,0.06931773,62217.0,62216.0,0.005818]
[1728660547482,0.06931773,62217.0,62216.0,0.013818]
[1728660547687,0.06931773,62217.0,62216.0,0.008818]
[1728660547891,0.06931773,62217.0,62216.0,0.005818]
[1728660548337,0.06931773,62217.0,62216.0,0.012818]
[1728660548543,0.06931773,62217.0,62216.0,0.000818]
[1728660548674,0.06931773,62217.0,62216.0,0.004818]
[1728660549323,0.06931773,62217.0,62216.0,0.010818]
[1728660549963,0.06931773,62217.0,62216.0,0.167548]
[1728660550173,0.05424838,62217.0,62216.0,0.172548]
[1728660550405,0.05424838,62217.0,62216.0,0.011818]
[1728660550592,0.05424838,62217.0,62216.0,0.166548]
[1728660551012,0.06931683,62217.0,62216.0,0.173548]
[1728660551684,0.06931683,62217.0,62216.0,0.012818]
[1728660553877,0.03013753,62217.0,62216.0,0.173548]
[1728660555378,0.0150693,62217.0,62216.0,0.173548]
[1728660556212,0.01506484,62217.0,62216.0,0.173548]
[1728660556839,0.01506484,62217.0,62216.0,0.012818]
[1728660556976,0.01506484,62217.0,62216.0,0.173548]
[1728660557765,0.01506484,62217.0,62216.0,0.012818]
[1728660558259,0.01506484,62217.0,62216.0,0.173548]
[1728660559631,0.01506484,62217.0,62216.0,0.02414678]
[1728660559930,0.01506322,62217.0,62216.0,0.02414678]
[1728660561805,0.03916511,62217.0,62216.0,0.02414678]
[1728660562006,0.05422826,62217.0,62216.0,0.02414678]
[1728660562422,0.22045227,62217.0,62216.0,0.02414678]
[1728660562639,0.60155767,62217.0,62216.0,0.012818]
[1728660562837,0.75443307,62217.0,62216.0,0.012818]
[1728660563289,0.87491869,62217.0,62216.0,0.012818]
[1728660563518,0.87491869,62217.0,62216.0,0.007818]
[1728660563727,0.75440522,62217.0,62216.0,0.000818]
[1728660563936,0.72226048,62217.0,62216.0,0.001818]
[1728660564142,0.76140725,62217.0,62216.0,0.001818]
[1728660564367,0.92213425,62217.0,62216.0,0.001818]
[1728660564571,1.04256673,62217.0,62216.0,0.001818]
[1728660564774,0.89993422,62217.0,62216.0,0.001818]
[1728660564976,1.08862218,62217.0,62216.0,0.001818]
[1728660565215,1.08262218,62217.0,62216.0,0.000818]
[1728660565433,1.08362218,62217.0,62216.0,0.000818]
[1728660565695,1.09162218,62217.0,62216.0,0.002818]
[1728660566942,1.21196492,62217.0,62216.0,0.002818]
[1728660567182,1.08962218,62217.0,62216.0,0.002818]
[1728660567386,1.20993076,62217.0,62216.0,0.002818]
[1728660567597,1.20983045,62217.0,62216.0,0.002818]
[1728660568211,1.18576366,62217.0,62216.0,0.002818]
[1728660568629,1.37620016,62217.0,62216.0,0.002818]
[1728660568932,1.27889158,62217.0,62216.0,0.002818]
[1728660569196,1.28089158,62217.0,62216.0,0.002818]
[1728660573373,1.40099696,62217.0,62216.0,0.002818]
[1728660574150,1.10291081,62217.0,62216.0,0.002818]
[1728660574367,1.40034777,62217.0,62216.0,0.002818]
[1728660574566,1.28024704,62217.0,62216.0,0.002818]
[1728660574763,1.40034777,62217.0,62216.0,0.002818]
[1728660574971,1.5991649,62217.0,62216.0,0.002818]
[1728660575175,1.49406407,62217.0,62216.0,0.002818]
[1728660575743,1.50412182,62217.0,62216.0,0.002818]
[1728660576583,1.69280978,62217.0,62216.0,0.002818]
[1728660576796,1.69280978,62217.0,62205.0,0.2424262]
[1728660576797,0.529756,62206.0,62205.0,0.2424262]
[1728660577012,1.28203874,62206.0,62205.0,0.2424262]
[1728660577507,0.165787,62194.0,62193.0,0.2424262]
[1728660577705,0.22022317,62194.0,62193.0,0.2424262]
[1728660578575,0.22022317,62194.0,62186.0,0.2424262]
[1728660578576,0.005,62190.0,62186.0,0.2424262]
[1728660578800,0.0149868,62189.0,62186.0,0.2424262]
[1728660579051,0.16622401,62190.0,62186.0,0.2424262]
[1728660579052,0.16622401,62190.0,62187.0,0.01084986]
[1728660579821,0.16622401,62190.0,62185.0,0.000819]
[1728660580069,0.16622401,62190.0,62188.0,0.01085065]
[1728660580338,0.01498413,62189.0,62186.0,0.002]
[1728660580589,0.16622401,62190.0,62186.0,0.002]
[1728660581094,0.01498263,62189.0,62186.0,0.002]
[1728660581345,0.01498263,62188.0,62185.0,0.000819]
[1728660581576,0.16622401,62190.0,62187.0,0.001]
[1728660581798,0.07462063,62189.0,62187.0,0.001]
[1728660582023,0.01498073,62188.0,62186.0,0.003]
[1728660582281,0.01498073,62187.0,62186.0,0.002]
[1728660582769,0.01498073,62187.0,62185.0,0.005819]
[1728660583021,0.16622401,62190.0,62187.0,0.002]
[1728660583263,0.01497849,62189.0,62187.0,0.002]
[1728660583519,0.01497849,62188.0,62187.0,0.002]
[1728660583995,0.16622401,62190.0,62187.0,0.002]
[1728660584236,0.01497697,62189.0,62186.0,0.005]
[1728660584455,0.01497697,62188.0,62185.0,0.000819]
[1728660584702,0.16622401,62190.0,62186.0,0.01]
[1728660585184,0.001,62187.0,62186.0,0.01]
[1728660585185,0.01497901,62189.0,62185.0,0.000819]
[1728660585422,0.01497901,62188.0,62187.0,0.001]
[1728660586183,0.01497901,62188.0,62186.0,0.003]
[1728660586431,0.16622401,62190.0,62185.0,0.000819]
[1728660586432,0.01497901,62187.0,62185.0,0.000819]
[1728660586695,0.01497901,62186.0,62185.0,0.000819]
[1728660586950,0.01497901,62186.0,62185.0,0.161629]
[1728660587201,0.005,62197.0,62196.0,0.160782]
[1728660587456,0.005,62197.0,62196.0,0.42846996]
[1728660587457,0.03897293,62197.0,62196.0,0.42846996]
[1728660587957,0.05396245,62197.0,62196.0,0.239782]
[1728660588218,0.03897293,62197.0,62196.0,0.239782]
[1728660588465,0.01498712,62197.0,62196.0,0.239782]
[1728660588742,0.01498712,62197.0,62196.0,0.079]
[1728660588939,0.01498712,62197.0,62196.0,0.08]
[1728660589146,0.03897891,62197.0,62196.0,0.08]
[1728660589360,0.03997891,62197.0,62196.0,0.08]
[1728660590470,0.05499321,62197.0,62196.0,0.08]
[1728660590891,0.05499321,62197.0,62196.0,0.001]
[1728660591537,0.06505109,62197.0,62196.0,0.001]
[1728660591980,0.0651561,62197.0,62196.0,0.001]
[1728660593103,0.05509825,62197.0,62196.0,0.001]
[1728660594740,0.05509825,62197.0,62196.0,0.11834575]
[1728660595361,0.05511541,62197.0,62196.0,0.11834575]
[1728660597390,0.05511541,62197.0,62196.0,0.12914835]
[1728660598812,0.05511541,62197.0,62196.0,0.28993035]
[1728660599299,0.05511541,62197.0,62196.0,0.12914835]
[1728660599708,0.05511541,62197.0,62196.0,0.3946941]
[1728660599917,0.01602729,62197.0,62196.0,0.3982846]
[1728660600138,0.01602729,62197.0,62196.0,0.6329761]
[1728660600617,0.01502729,62197.0,62196.0,0.6329761]
[1728660600849,0.01502729,62197.0,62196.0,0.6319761]
[1728660601059,0.02662398,62210.0,62197.0,0.321558]
[1728660601280,0.02662398,62210.0,62207.0,0.11734575]
[1728660601281,0.07927256,62209.0,62207.0,0.11734575]
[1728660601486,0.0782621,62208.0,62207.0,0.11734575]
[1728660601703,0.0782621,62208.0,62202.0,0.11734575]
[1728660601912,0.005,62202.0,62196.0,0.0883026]
[1728660602127,0.005,62199.0,62197.0,0.001]
[1728660602337,0.0883191,62198.0,62197.0,0.002]
[1728660602559,0.06424346,62198.0,62197.0,0.002]
[1728660603423,0.06424346,62198.0,62196.0,0.0108026]
[1728660603626,0.05418633,62197.0,62196.0,0.0108026]
[1728660604051,0.03913458,62197.0,62196.0,0.2467846]
[1728660604678,0.03913458,62197.0,62196.0,0.2497846]
[1728660604900,0.03913458,62197.0,62196.0,0.2557846]
[1728660604901,0.01505178,62197.0,62196.0,0.2557846]
[1728660605117,0.005,62205.0,62196.0,0.0950026]
[1728660605390,0.03911456,62204.0,62197.0,0.482335]
[1728660605559,0.06421451,62203.0,62197.0,0.160777]
[1728660605770,0.06421451,62202.0,62196.0,0.0920026]
[1728660605982,0.01683563,62203.0,62196.0,0.0920026]
[1728660605983,0.05415811,62201.0,62196.0,0.0920026]
[1728660606190,0.05415811,62200.0,62196.0,0.0920026]
[1728660606416,0.03911456,62199.0,62196.0,0.0860026]
[1728660606652,0.03911456,62198.0,62197.0,0.160778]
[1728660607090,0.03911456,62198.0,62196.0,0.0900026]
[1728660607304,0.01683563,62203.0,62196.0,0.0168026]
[1728660607305,0.03911079,62197.0,62196.0,0.0168026]
[1728660607724,0.03911079,62197.0,62196.0,0.0148026]
[1728660607725,0.05415314,62197.0,62196.0,0.0148026]
[1728660607961,0.03911079,62197.0,62196.0,0.0108026]
[1728660608171,0.05415339,62197.0,62196.0,0.0108026]
[1728660608373,0.03910933,62197.0,62196.0,0.0108026]
[1728660608573,0.05415444,62197.0,62196.0,0.0108026]
[1728660608785,0.07619229,62197.0,62196.0,0.0108026]
[1728660608995,0.21537845,62197.0,62196.0,0.0108026]
[1728660609446,0.37615745,62197.0,62196.0,0.0108026]
[1728660609662,0.87256274,62197.0,62196.0,0.0108026]
[1728660609881,1.00214501,62197.0,62196.0,0.0108026]
[1728660610093,0.32037845,62197.0,62196.0,0.0108026]
[1728660610292,0.39259399,62197.0,62196.0,0.0148026]
[1728660610727,0.39259399,62197.0,62196.0,0.0208026]
[1728660610978,0.39259399,62197.0,62196.0,0.0108026]
[1728660611186,0.56137299,62197.0,62196.0,0.0118026]
[1728660611389,0.95858218,62197.0,62196.0,0.0118026]
[1728660611590,0.95858218,62197.0,62196.0,0.0128026]
[1728660611591,1.07108987,62197.0,62196.0,0.0128026]
[1728660612516,0.005,62187.0,62186.0,0.000819]
[1728660612757,0.26852079,62187.0,62186.0,0.000819]
[1728660612974,0.22037845,62187.0,62186.0,0.000819]
[1728660613757,0.38118345,62187.0,62186.0,0.000819]
[1728660614370,0.22037845,62187.0,62186.0,0.000819]
[1728660614576,0.38118345,62187.0,62186.0,0.000819]
[1728660614779,0.24542689,62187.0,62186.0,0.000819]
[1728660615156,0.22337845,62187.0,62186.0,0.000819]
[1728660615365,0.22537845,62187.0,62186.0,0.000819]
[1728660618105,0.38618345,62187.0,62186.0,0.000819]
[1728660618942,0.41125665,62187.0,62186.0,0.000819]
[1728660619162,0.38016243,62187.0,62186.0,0.000819]
[1728660619399,0.8081847,62187.0,62186.0,0.000819]
[1728660619818,0.78313303,62187.0,62186.0,0.000819]
[1728660621094,0.73499961,62187.0,62186.0,0.000819]
[1728660621322,1.11383303,62187.0,62186.0,0.000819]
[1728660621561,1.367535,62187.0,62186.0,0.000819]
[1728660622197,1.27126815,62187.0,62186.0,0.000819]
[1728660622408,1.367535,62187.0,62186.0,0.000819]
[1728660622833,1.36738364,62187.0,62186.0,0.000819]
[1728660623040,1.36438364,62187.0,62186.0,0.000819]
[1728660623304,1.09066588,62187.0,62186.0,0.000819]
[1728660623514,1.10166588,62187.0,62186.0,0.000819]
[1728660623749,1.37534253,62187.0,62186.0,0.000819]
[1728660623961,1.36234253,62187.0,62186.0,0.000819]
[1728660624169,1.10966588,62187.0,62186.0,0.001819]
[1728660624410,1.28711905,62187.0,62186.0,0.001819]
[1728660624633,1.38330539,62187.0,62186.0,0.001819]
[1728660625106,0.92089924,62187.0,62186.0,0.001819]
[1728660625351,1.3682383,62187.0,62186.0,0.001819]
[1728660625859,1.7033643,62187.0,62186.0,0.001819]
[1728660626331,1.7033643,62187.0,62186.0,0.00101512]
[1728660626568,1.89213094,62187.0,62186.0,0.00101512]
[1728660626788,1.91617752,62187.0,62186.0,0.00101512]
[1728660627010,0.528515,62183.0,62182.0,0.2424262]
[1728660627227,2.6118686,62183.0,62182.0,0.2424262]
[1728660627433,2.6118686,62183.0,62171.0,0.23897382]
[1728660627434,0.248144,62172.0,62171.0,0.23897382]
[1728660627657,0.44841488,62172.0,62171.0,0.23897382]
[1728660627861,0.20527088,62172.0,62171.0,0.23897382]
[1728660628081,0.20527088,62172.0,62171.0,0.31457382]
[1728660628309,0.20527088,62172.0,62171.0,0.0756]
[1728660628310,0.18124204,62172.0,62171.0,0.0756]
[1728660628942,0.18124204,62172.0,62171.0,0.07249759]
[1728660628943,0.18624204,62172.0,62171.0,0.07249759]
[1728660629588,0.18624204,62172.0,62171.0,0.07179533]
[1728660629796,0.19224204,62172.0,62171.0,0.07179533]
[1728660630010,0.19221956,62172.0,62167.0,0.1506]
[1728660630227,0.17621956,62171.0,62167.0,0.1506]
[1728660630437,0.01499555,62170.0,62167.0,0.1506]
[1728660630642,0.005,62168.0,62167.0,0.1506]
[1728660633569,0.007,62168.0,62167.0,0.1506]
[1728660633779,0.007,62168.0,62167.0,0.151419]
[1728660634414,0.0238224,62168.0,62167.0,0.000819]
[1728660634655,0.03882987,62168.0,62167.0,0.000819]
[1728660634840,0.02200747,62168.0,62167.0,0.000819]
[1728660637403,0.0220282,62168.0,62167.0,0.000819]
[1728660638426,0.04608534,62168.0,62167.0,0.000819]
[1728660639041,0.007,62168.0,62167.0,0.000819]
[1728660639707,0.04610891,62168.0,62167.0,0.000819]
[1728660640332,0.0829264,62168.0,62167.0,0.000819]
[1728660640539,0.36818692,62168.0,62167.0,0.000819]
[1728660641185,0.49325673,62168.0,62167.0,0.000819]
[1728660641391,0.46818692,62168.0,62167.0,0.000819]
[1728660642637,0.42907801,62168.0,62167.0,0.000819]
[1728660642844,0.57860148,62168.0,62167.0,0.000819]
[1728660643882,0.61773153,62168.0,62167.0,0.000819]
[1728660644699,0.59364712,62168.0,62167.0,0.000819]
[1728660644910,0.61772015,62168.0,62167.0,0.000819]
[1728660645733,0.60267451,62168.0,62167.0,0.000819]
[1728660646387,0.45315104,62168.0,62167.0,0.000819]
[1728660646592,0.29229704,62168.0,62167.0,0.000819]
[1728660646803,0.19229704,62168.0,62167.0,0.000819]
[1728660648515,0.19230637,62168.0,62167.0,0.000819]
[1728660652593,0.20736632,62168.0,62167.0,0.000819]
[1728660653743,0.24685963,62168.0,62167.0,0.000819]
[1728660655401,0.27194542,62168.0,62167.0,0.000819]
[1728660655616,0.24685963,62168.0,62167.0,0.000819]
[1728660655875,0.22277727,62168.0,62167.0,0.000819]
[1728660656121,0.24688157,62168.0,62167.0,0.000819]
[1728660658333,0.27198953,62168.0,62167.0,0.000819]
[1728660659607,0.20771732,62168.0,62167.0,0.000819]
[1728660659841,0.2719958,62168.0,62167.0,0.000819]
[1728660662404,0.27199631,62168.0,62167.0,0.000819]
[1728660663254,0.27199968,62168.0,62167.0,0.000819]
[1728660664142,0.40774318,62168.0,62167.0,0.000819]
[1728660664564,0.27200223,62168.0,62167.0,0.000819]
[1728660664770,0.24688918,62168.0,62167.0,0.000819]
[1728660665429,0.36857132,62168.0,62167.0,0.000819]
[1728660665660,0.40774932,62168.0,62167.0,0.000819]
[1728660665885,0.40774934,62168.0,62167.0,0.000819]
[1728660666343,0.45591556,62168.0,62167.0,0.000819]
[1728660666558,0.25556825,62168.0,62167.0,0.000819]
[1728660666969,0.20740203,62168.0,62167.0,0.000819]
[1728660667185,0.25560577,62168.0,62167.0,0.000819]
[1728660668026,0.04617802,62168.0,62167.0,0.161676]
[1728660668236,0.04117802,62168.0,62167.0,0.57454264]
[1728660668445,0.002,62168.0,62167.0,0.57454264]
[1728660669349,0.00164,62171.0,62167.0,0.57454264]
[1728660669350,0.00164,62171.0,62168.0,0.002]
[1728660669563,0.00164,62171.0,62170.0,0.393149]
[1728660669778,0.0240863,62181.0,62170.0,0.393149]
[1728660669779,0.0240863,62181.0,62180.0,0.160823]
[1728660669987,0.2675161,62189.0,62186.0,0.160807]
[1728660669988,0.005,62187.0,62186.0,0.160807]
[1728660670253,0.04413668,62187.0,62186.0,0.34957364]
[1728660670472,0.001638,62196.0,62187.0,0.0816]
[1728660670473,0.005,62193.0,62187.0,0.0816]
[1728660670702,0.001638,62196.0,62187.0,0.0816]
[1728660670703,0.005,62191.0,62190.0,0.160796]
[1728660670915,0.0290619,62191.0,62190.0,0.160796]
[1728660671123,0.0240619,62191.0,62190.0,0.160796]
[1728660671349,0.001638,62196.0,62190.0,0.2424262]
[1728660671350,0.005,62195.0,62190.0,0.2424262]
[1728660671631,0.001638,62196.0,62195.0,0.160784]
[1728660671852,0.001638,62196.0,62195.0,0.314284]
[1728660672069,0.001638,62196.0,62195.0,0.31749951]
[1728660672284,0.001638,62196.0,62195.0,0.396384]
[1728660672507,0.001638,62196.0,62195.0,0.58515064]
[1728660673172,0.002638,62196.0,62195.0,0.59315064]
[1728660673391,0.003638,62196.0,62195.0,0.59315064]
[1728660673608,0.003638,62196.0,62195.0,0.43965064]
[1728660674058,0.002638,62196.0,62195.0,0.43965064]
[1728660674267,0.003638,62196.0,62195.0,0.43965064]
[1728660674488,0.002638,62196.0,62195.0,0.43165064]
[1728660674719,0.002638,62196.0,62195.0,0.43665064]
[1728660674937,0.002638,62196.0,62195.0,0.43165064]
[1728660675459,0.002638,62196.0,62195.0,0.43765064]
[1728660675653,0.001638,62196.0,62195.0,0.43765064]
[1728660675861,0.002638,62196.0,62195.0,0.43765064]
[1728660676083,0.002638,62196.0,62195.0,0.43165064]
[1728660676291,0.001638,62196.0,62195.0,0.43165064]
[1728660676516,0.001638,62196.0,62195.0,0.43665064]
[1728660676767,0.002638,62196.0,62195.0,0.43665064]
[1728660677809,0.002638,62196.0,62195.0,0.43165064]
[1728660678026,0.003638,62196.0,62195.0,0.43765064]
[1728660678439,0.002638,62196.0,62195.0,0.43165064]
[1728660678650,0.001638,62196.0,62195.0,0.43165064]
[1728660678855,0.001638,62196.0,62195.0,0.43765064]
[1728660679081,0.003638,62196.0,62195.0,0.43765064]
[1728660679545,0.002638,62196.0,62195.0,0.43765064]
[1728660679753,0.003638,62196.0,62195.0,0.43765064]
[1728660679998,0.003638,62196.0,62195.0,0.27686664]
[1728660680211,0.003638,62196.0,62195.0,0.166784]
[1728660680444,0.003638,62196.0,62195.0,0.006]
[1728660681371,0.002638,62196.0,62193.0,0.160789]
[1728660681591,0.003638,62196.0,62195.0,0.007]
[1728660681834,0.003638,62196.0,62195.0,0.160784]
[1728660681835,0.002638,62196.0,62195.0,0.160784]
[1728660682127,0.003638,62196.0,62195.0,0.168784]
[1728660682330,0.002638,62196.0,62195.0,0.168784]
[1728660682553,0.003638,62196.0,62195.0,0.168784]
[1728660682972,0.002638,62196.0,62195.0,0.168784]
[1728660683200,0.002638,62196.0,62195.0,0.244384]
[1728660683416,0.003638,62196.0,62195.0,0.244384]
[1728660683834,0.003638,62196.0,62195.0,0.55932321]
[1728660684044,0.003638,62196.0,62195.0,0.65610801]
[1728660684869,0.002638,62196.0,62195.0,0.64810801]
[1728660685228,0.002638,62196.0,62195.0,0.66210801]
[1728660685428,0.003638,62196.0,62195.0,0.66810801]
[1728660685682,0.003638,62196.0,62195.0,0.66610801]
[1728660685994,0.002638,62196.0,62195.0,0.498884]
[1728660686417,0.003638,62196.0,62195.0,0.504884]
[1728660687083,0.003638,62196.0,62195.0,0.66610801]
[1728660687293,0.003638,62196.0,62195.0,0.66810801]
[1728660689028,0.003638,62196.0,62195.0,0.66610801]
[1728660689453,0.003638,62196.0,62195.0,0.66810801]
[1728660691109,0.002638,62196.0,62195.0,0.65410801]
[1728660691578,0.002638,62196.0,62195.0,0.66610801]
[1728660691830,0.002638,62196.0,62195.0,0.65210801]
[1728660692109,0.001638,62196.0,62195.0,0.66210801]
[1728660692362,0.002638,62196.0,62195.0,0.66710801]
[1728660692868,0.001638,62196.0,62195.0,0.66210801]
[1728660693102,0.002638,62196.0,62195.0,0.66610801]
[1728660693580,0.002638,62196.0,62195.0,0.66410801]
[1728660693845,0.002638,62196.0,62195.0,0.85287465]
[1728660695646,0.002638,62196.0,62195.0,0.75287465]
[1728660697512,0.002638,62196.0,62195.0,0.44315064]
[1728660700505,0.002638,62196.0,62195.0,0.86577465]
[1728660701830,0.001,62196.0,62195.0,1.05454129]
[1728660702049,0.2424262,62218.0,62211.0,0.321485]
[1728660702275,0.2424262,62218.0,62215.0,0.160732]
[1728660702523,0.02568564,62216.0,62215.0,0.160732]
[1728660704405,0.02568564,62216.0,62215.0,0.162732]
[1728660704832,0.02568564,62216.0,62215.0,0.160732]
[1728660705080,0.04071323,62216.0,62215.0,0.162732]
[1728660705500,0.04071323,62216.0,62215.0,0.166732]
[1728660705934,0.04071323,62216.0,62215.0,0.17751085]
[1728660706379,0.04071323,62216.0,62215.0,0.17851085]
[1728660707745,0.04071323,62216.0,62215.0,0.36727749]
[1728660709316,0.04071323,62216.0,62215.0,0.163732]
[1728660711529,0.04071323,62216.0,62215.0,0.35249864]
[1728660714386,0.04071323,62216.0,62215.0,0.163732]
[1728660714590,0.04071323,62216.0,62215.0,0.003]
[1728660715661,0.04071323,62216.0,62215.0,0.162732]
[1728660715886,0.04071323,62216.0,62215.0,0.005]
[1728660716967,0.04071323,62216.0,62215.0,0.003]
[1728660717160,0.04071323,62216.0,62215.0,0.011]
[1728660717388,0.04071323,62216.0,62215.0,0.008]
[1728660717634,0.04171323,62216.0,62215.0,0.014]
[1728660717865,0.20293724,62216.0,62215.0,0.014]
[1728660718073,0.20193724,62216.0,62207.0,0.321502]
[1728660718292,0.20193724,62216.0,62204.0,0.2424262]
[1728660718293,0.03907523,62215.0,62204.0,0.2424262]
[1728660718521,0.03907523,62214.0,62208.0,0.16075]
[1728660718727,0.03907523,62213.0,62208.0,0.16075]
[1728660718937,0.16286201,62216.0,62208.0,0.16075]
[1728660718938,0.03907523,62212.0,62208.0,0.16075]
[1728660719143,0.03907523,62211.0,62209.0,0.160748]
[1728660719356,0.03907523,62210.0,62204.0,0.2424262]
[1728660719560,0.16486201,62216.0,62205.0,0.2424262]
[1728660719561,0.04407523,62209.0,62205.0,0.2424262]
[1728660719764,0.03907523,62208.0,62203.0,0.321524]
[1728660719981,0.03907523,62207.0,62198.0,0.321551]
[1728660720202,0.03907523,62207.0,62196.0,0.000819]
[1728660720203,0.03907523,62206.0,62196.0,0.000819]
[1728660720484,0.12127523,62205.0,62198.0,0.321553]
[1728660720701,0.0822,62205.0,62198.0,0.160776]
[1728660720916,0.03912758,62204.0,62196.0,0.1616]
[1728660721135,0.03912954,62203.0,62197.0,0.160778]
[1728660721342,0.03912954,62203.0,62196.0,0.2432452]
[1728660721343,0.03912954,62202.0,62196.0,0.2432452]
[1728660721583,0.03912954,62201.0,62197.0,0.006]
[1728660721791,0.03912954,62200.0,62197.0,0.006]
[1728660722000,0.03912954,62199.0,62198.0,0.011]
[1728660722206,0.03912954,62199.0,62197.0,0.006]
[1728660722429,0.03911893,62198.0,62197.0,0.166778]
[1728660722633,0.03911893,62198.0,62196.0,0.000819]
[1728660722846,0.01503921,62197.0,62196.0,0.1616]
[1728660723034,0.03910275,62197.0,62196.0,0.1616]
[1728660723374,0.01503921,62197.0,62196.0,0.1616]
[1728660724211,0.01503921,62197.0,62196.0,0.35958229]
[1728660724431,0.005,62205.0,62204.0,0.160761]
[1728660724659,0.04407824,62205.0,62204.0,0.160761]
[1728660725646,0.04707824,62205.0,62204.0,0.160761]
[1728660725849,0.02303009,62205.0,62204.0,0.160761]
[1728660726060,0.04707474,62205.0,62204.0,0.160761]
[1728660726262,0.02303009,62205.0,62204.0,0.160761]
[1728660726902,0.02303009,62205.0,62202.0,0.160764]
[1728660727118,0.02303009,62205.0,62200.0,0.321539]
[1728660727119,0.01503009,62204.0,62203.0,0.160763]
[1728660727322,0.01503009,62204.0,62202.0,0.160765]
[1728660727526,0.2516541,62203.0,62196.0,0.000819]
[1728660727657,0.01503009,62202.0,62198.0,0.2424262]
[1728660727854,0.1762541,62201.0,62198.0,0.2424262]
[1728660728104,0.01503009,62200.0,62196.0,0.1616]
[1728660728307,0.01503009,62199.0,62196.0,0.1616]
[1728660728511,0.16122401,62201.0,62197.0,0.160778]
[1728660728714,0.16122401,62201.0,62196.0,0.000819]
[1728660728715,0.01502261,62200.0,62196.0,0.000819]
[1728660728912,0.16622401,62201.0,62198.0,0.002]
[1728660728913,0.01502261,62199.0,62198.0,0.002]
[1728660729322,0.01502261,62199.0,62196.0,0.000819]
[1728660729529,0.01502261,62198.0,62196.0,0.000819]
[1728660729726,0.01502261,62197.0,62196.0,0.161601]
[1728660730365,0.01501926,62197.0,62196.0,0.161601]
[1728660730587,0.16622401,62201.0,62198.0,0.160776]
[1728660730796,0.01501674,62200.0,62198.0,0.160776]
[1728660730998,0.01501674,62199.0,62198.0,0.160776]
[1728660731399,0.01501674,62199.0,62196.0,0.000819]
[1728660731610,0.01501674,62198.0,62197.0,0.001]
[1728660732449,0.01501674,62198.0,62196.0,0.003819]
[1728660732652,0.01501287,62197.0,62196.0,0.1616]
[1728660732876,0.01501287,62197.0,62196.0,0.002819]
[1728660733381,0.17623688,62197.0,62196.0,0.002819]
[1728660734102,0.17623688,62197.0,62196.0,0.163601]
[1728660734307,0.16122401,62197.0,62196.0,0.161601]
[1728660734505,0.005,62201.0,62198.0,0.160775]
[1728660734711,0.17623506,62200.0,62197.0,0.004]
[1728660734929,0.01501105,62199.0,62196.0,0.003819]
[1728660735132,0.01501091,62198.0,62197.0,0.160779]
[1728660735566,0.01501091,62198.0,62196.0,0.009819]
[1728660735774,0.16122401,62199.0,62196.0,0.004819]
[1728660735979,0.01501105,62198.0,62196.0,0.000819]
[1728660736188,0.09771105,62197.0,62196.0,0.002819]
[1728660736400,0.69493481,62197.0,62196.0,0.002819]
[1728660736599,0.81596045,62197.0,62196.0,0.002819]
[1728660737023,0.81595805,62197.0,62196.0,0.002819]
[1728660737463,0.89200163,62197.0,62196.0,0.002819]
[1728660737666,1.02130959,62197.0,62196.0,0.002819]
[1728660737877,1.11743968,62197.0,62196.0,0.002819]
[1728660738113,1.11743968,62197.0,62196.0,0.001819]
[1728660738324,1.11743968,62197.0,62196.0,0.000819]
[1728660738325,0.99641404,62197.0,62196.0,0.000819]
[1728660738546,0.80296736,62197.0,62196.0,0.001819]
[1728660738749,0.80296832,62197.0,62196.0,0.001819]
[1728660739338,0.81196832,62197.0,62196.0,0.002819]
[1728660739544,0.73993241,62197.0,62196.0,0.002819]
[1728660740324,0.78793707,62197.0,62196.0,0.002819]
[1728660740534,0.73993241,62197.0,62196.0,0.002819]
[1728660740829,0.78793707,62197.0,62196.0,0.002819]
[1728660741453,0.73993241,62197.0,62196.0,0.002819]
[1728660742311,0.90130212,62197.0,62196.0,0.002819]
[1728660742509,1.23274512,62197.0,62196.0,0.002819]
[1728660742763,1.23474512,62197.0,62196.0,0.002819]
[1728660742911,1.41178091,62197.0,62196.0,0.002819]
[1728660743268,0.01,62190.0,62189.0,0.2424262]
[1728660743466,0.92691705,62190.0,62189.0,0.2424262]
[1728660743672,1.01251882,62190.0,62189.0,0.2424262]
[1728660743969,0.265805,62187.0,62172.0,0.160842]
[1728660744179,0.57151549,62187.0,62171.0,0.00082]
[1728660744381,0.92688213,62187.0,62171.0,0.00082]
[1728660744581,0.97684023,62187.0,62171.0,0.00082]
[1728660744765,1.13620994,62187.0,62171.0,0.00082]
[1728660744965,1.08825184,62187.0,62171.0,0.00082]
[1728660745168,2.56303794,62187.0,62186.0,0.101]
[1728660745370,2.52210048,62187.0,62186.0,0.101]
[1728660745818,2.53663994,62187.0,62186.0,0.101]
[1728660746020,2.1428593,62187.0,62186.0,0.101]
[1728660746232,0.240936,62175.0,62171.0,0.00082]
[1728660746428,0.44114649,62175.0,62171.0,0.00082]
[1728660746821,0.160844,62172.0,62171.0,0.00082]
[1728660747024,0.47450604,62172.0,62171.0,0.00082]
[1728660748861,0.47750604,62172.0,62171.0,0.00082]
[1728660749093,0.47950604,62172.0,62171.0,0.00082]
[1728660750413,0.33206801,62172.0,62171.0,0.00082]
[1728660750627,0.21017004,62172.0,62171.0,0.00082]
[1728660750863,0.37101404,62172.0,62171.0,0.00082]
[1728660753840,0.33206801,62172.0,62171.0,0.00082]
[1728660754054,0.37099974,62172.0,62171.0,0.00082]
[1728660754275,0.53236945,62172.0,62171.0,0.00082]
[1728660757169,0.37099974,62172.0,62171.0,0.00082]
[1728660760992,0.33206801,62172.0,62171.0,0.00082]